[Event "Serbian League 2024"]
[Site "Bajina Basta"]
[Date "2024.09.28"]
[Round "1.13"]
[White "Nadj Hedjesi, Balind"]
[Black "Ivic, Velimir"]
[Result "0-1"]
[ECO "B92"]
[WhiteElo "2212"]
[BlackElo "2599"]
[Annotator "TA"]
[PlyCount "64"]
[EventDate "2024.09.26"]
[EventType "team-tourn"]
[EventCountry "SRB"]
[SourceTitle "playchess.com"]
[Source "ChessBase"]
[SourceQuality "1"]
[TimeControl "40/5400+30:1800+30"]

{[%evp 24,64,6,7,23,8,12,-28,-28,-26,-23,-49,-59,-77,-81,-73,-83,-70,-77,-75,-75,-75,-76,-158,-149,-187,-169,-410,-422,-425,-405,-383,-352,-670,-651,-645,-432,-524,-405,-969,-1036,-1048,-1019]} 1. e4 {[%emt 0:00:37]} c5 {[%emt 0:00:19]} 2. Nf3 {[%emt 0:00:48]} d6 {[%emt 0:00:37]} 3. d4 {[%emt 0:00:41]} cxd4 {[%emt 0:00:07]} 4. Nxd4 {[%emt 0:00:04]} Nf6 {[%emt 0:00:08]} 5. Nc3 {[%emt 0:00:08]} a6 {[%emt 0:00:15]} 6. Be2 {[%emt 0:00:19]} e5 {[%emt 0:01:09]} 7. Nb3 {[%emt 0:02:03]} Be7 {[%emt 0:00:23]} 8. Qd3 {[%emt 0:01:38]} Be6 {[%emt 0:06:33]} 9. O-O {[%emt 0:04:36]} O-O {[%emt 0:01:51]} 10. Be3 {[%emt 0:01:56]} Nbd7 {[%emt 0:02:27]} 11. Nd5 {[%emt 0:07:03]} Bxd5 {[%emt 0:00:50]} 12. exd5 {[%emt 0:00:11]} Rc8 {[%emt 0:01:08]} 13. c4 {[%emt 0:02:15]} a5 {[%emt 0:02:06]} 14. Rac1 {[%emt 0:06:02]} b6 {[%emt 0:04:09]} 15. Na1 {[%emt 0:12:00][%cal Bb3a1,Ba1c2,Bc2b4,Bb4c6][%mdl 32]} Nc5 {[%emt 0:02:16] Black has an edge.} 16. Qd1 {[%emt 0:01:47]} Nfd7 {[%emt 0:04:05]} 17. a3 {[%emt 0:07:00]} a4 $1 {[%emt 0:04:21]} 18. Nc2 {[%emt 0:06:18]} Bg5 {[%emt 0:01:22]} 19. Nb4 {[%emt 0:03:59]} Bxe3 {[%emt 0:01:42]} 20. fxe3 {[%emt 0:02:33]} Qg5 {[%emt 0:01:42]} 21. Rf3 {[%emt 0:03:32]} f5 {[%emt 0:01:30]} 22. Nc6 {[%emt 0:06:54]} Rce8 {[%emt 0:01:36]} 23. Qe1 {[%emt 0:04:57]} ({White should play} 23. Rg3 Qf6 24. Qc2) 23... f4 $17 {[%emt 0:04:19]} 24. Qc3 {[%emt 0:03:32]} Nf6 {[%emt 0:02:46][%cal Bd7f6,Bf6g4,Bg4e5,Be5d3][%mdl 32] Hoping for ...Ng4.} 25. Bf1 $2 {[%emt 0:14:07]} (25. Qc2 {was called for.}) 25... Ng4 $19 {[%emt 0:03:35] A dynamic duo of knights.} 26. exf4 {[%emt 0:01:33]} exf4 {[%emt 0:00:41] ...Re3 would now be deadly.} ({Don't take} 26... Rxf4 27. Rh3 $19) 27. Nd4 {[%emt 0:02:44]} Ne5 {[%emt 0:01:07]} 28. Rh3 $2 {[%emt 0:03:28] [#]} (28. Qd2) 28... f3 $1 {[%emt 0:03:22][%mdl 512]} 29. Rg3 {[%emt 0:01:09]} f2+ {[%emt 0:00:17]} 30. Kh1 {[%emt 0:00:02]} Qf4 {[%emt 0:00:17]} 31. Qe3 {[%emt 0:01:18]} (31. Ne2 $142 Qf6 32. Re3) 31... Qxe3 {[%emt 0:00:56]} 32. Rxe3 {[%emt 0:00:01] [#]} Ned3 $1 {[%emt 0:00:48][%mdl 512] Black took control after the opening.   Weighted Error Value: White=0.71/Black=0.13 (very precise) .  Mistake:       	White=4     	---        Inaccurate:     	White=2     	---        OK:         	White=5     	Black=7      Best:        	White=1     	Black=2      Strong:       	---       	Black=1      Brilliant:      	---       	Black=1} 0-1

[Event "Serbian League 2024"]
[Site "Bajina Basta"]
[Date "2024.09.28"]
[Round "1.14"]
[White "Djukic, Nikola"]
[Black "Yilmaz, Baver"]
[Result "1-0"]
[ECO "C60"]
[WhiteElo "2515"]
[BlackElo "2202"]
[Annotator "TA"]
[PlyCount "99"]
[EventDate "2024.09.26"]
[EventType "team-tourn"]
[EventCountry "SRB"]
[SourceTitle "playchess.com"]
[Source "ChessBase"]
[SourceQuality "1"]
[TimeControl "40/5400+30:1800+30"]

{[%evp 12,99,23,26,32,29,44,29,42,22,40,34,28,23,25,0,31,31,56,38,82,79,116,100,102,122,120,7,0,0,100,94,108,109,110,95,108,91,116,103,140,123,142,106,108,110,145,148,285,260,251,264,258,238,467,352,371,379,383,363,367,387,384,372,539,485,557,537,557,560,563,565,531,521,523,506,893,867,837,805,1193,1150,1143,1070,1235,1022,29970,29973,29970,29973]} 1. e4 {[%emt 0:00:04]} e5 {[%emt 0:00:14]} 2. Nf3 {[%emt 0:00:07]} Nc6 {[%emt 0:00:08]} 3. Bb5 {[%emt 0:00:07]} Nge7 {[%emt 0:00:52]} 4. Nc3 {[%emt 0:00:18]} g6 {[%emt 0:00:33]} 5. d4 {[%emt 0:00:22]} exd4 {[%emt 0:00:27]} 6. Nxd4 {[%emt 0:00:07]} Bg7 {[%emt 0:01:02]} 7. Be3 {[%emt 0:00:16]} O-O {[%emt 0:00:21]} 8. Nxc6 {[%emt 0:00:15]} bxc6 {[%emt 0:04:25]} 9. Ba4 {[%emt 0:00:08]} d6 {[%emt 0:06:24] White has an edge.} 10. Bd4 {[%emt 0:02:37]} f6 {[%emt 0:04:02]} 11. Bb3+ {[%emt 0:03:19]} Kh8 {[%emt 0:00:11]} 12. h4 {[%emt 0:00:06] Strongly threatening h5.} c5 {[%emt 0:02:33]} 13. Be3 {[%emt 0:01:20] aiming for h5.} h5 {[%emt 0:02:32]} 14. Qd2 {[%emt 0:00:32]} Rb8 {[%emt 0:03:10]} 15. O-O-O {[%emt 0:10:30][%cal Oe3c5]} Nc6 {[%emt 0:04:23]} 16. f3 $36 {[%emt 0:08:05][%cal Og2g4][%mdl 2048] Black is under strong pressure.} Qe8 {[%emt 0:04:38] [#]} 17. g4 $1 {[%emt 0:07:24][%mdl 512] Threatens to win with gxh5.} Ne5 {[%emt 0:04:32]} 18. gxh5 {[%emt 0:00:17]} gxh5 {[%emt 0:00:24]} 19. f4 {[%emt 0:14:58]} (19. Rdf1 $16) 19... Ng4 $11 {[%emt 0:03:43]} 20. Rhe1 {[%emt 0:02:41]} Be6 {[%emt 0:05:53]} (20... Bh6 $11) 21. f5 {[%emt 0:04:50]} Bxb3 {[%emt 0:04:48]} 22. cxb3 {[%emt 0:00:30]} Kh7 {[%emt 0:02:31] ...Nxe3 would now be deadly.} 23. Bf4 {[%emt 0:03:23]} Qf7 {[%emt 0:03:36]} 24. Kb1 {[%emt 0:01:35]} Rfe8 {[%emt 0:02:51]} 25. Nd5 {[%emt 0:06:10][%cal Bc3d5,Bd5f4,Bf4e6][%mdl 32]} Rb7 {[%emt 0:02:53][%cal Oa7a5]} 26. Qc2 {[%emt 0:01:47]} a5 {[%emt 0:02:31]} 27. Bd2 {[%emt 0:07:03]} Ra8 {[%emt 0:04:08]} 28. Nf4 {[%emt 0:03:12] White is more active.} Qe8 {[%emt 0:02:59]} 29. Ne6 {[%emt 0:07:39]} Raa7 {[%emt 0:08:52]} (29... Qb5 $16 30. Bc3 a4) 30. a4 {[%emt 0:09:25]} Ra8 {[%emt 0:02:56][%cal Ba7a8,Ba8b8,Bb8b4][%mdl 32]} 31. Rg1 {[%emt 0:00:40]} Rab8 {[%emt 0:10:22]} 32. Rg3 {[%emt 0:00:07]} (32. Bxa5 Rxb3 33. Bc3 Qxa4 34. Nxc7 Qc4 $19 (34... Ne3 $2 35. Qe2 $19)) 32... Qc6 $2 {[%emt 0:01:43]} (32... Bh6 {is a better defense.} 33. Bxa5 Qf7) 33. Bxa5 {[%emt 0:03:28]} Bh6 {[%emt 0:01:46] [#]} 34. b4 $1 {[%emt 0:01:01][%mdl 512]} Rxb4 {[%emt 0:02:35]} 35. Bxb4 {[%emt 0:00:05]} (35. Bxc7 Rxb2+ 36. Qxb2 Qxe4+ (36... Rxb2+ $2 37. Kxb2 Ne3 38. Rxe3 $19) 37. Rdd3 Rxb2+ 38. Kxb2 Ne5 (38... Qxf5 $2 39. Rxd6 Qf2+ 40. Kb1 $19) 39. Nxc5 Nxd3+ (39... dxc5 $2 40. Bxe5 Qxe5+ 41. Kb3 $19) 40. Nxd3 Qxa4 (40... Qxf5 $2 41. Bxd6 Qd7 42. Bc5 $19) 41. Bxd6 Qd4+ (41... Qxh4 $2 42. Kc3 $19) 42. Kc2 Qxd6 $19) 35... Rxb4 {[%emt 0:00:05] [#]} 36. Rd4 $3 {[%emt 0:00:56][%mdl 512] Black must now prevent Rxb4.} Rb8 {[%emt 0:01:47]} (36... Ne3 $2 37. Rxe3 $18) 37. Rc4 {[%emt 0:00:29]} Ne3 {[%emt 0:01:33] [#]} (37... Qa6 $142 38. Ka2 (38. Nxc7 Qa5 $16) 38... Ne5 (38... Ne3 $2 39. Rxe3 Bxe3 40. e5 $18)) 38. Rxe3 $1 $18 {[%emt 0:00:40][%mdl 512]} Bxe3 {[%emt 0:00:05]} 39. Qe2 {[%emt 0:00:21]} Bh6 {[%emt 0:00:48]} 40. Qxh5 {[%emt 0:00:27]} Qe8 {[%emt 0:00:38] Prevents Qg6+} 41. Qxe8 {[%emt 0:30:51]} Rxe8 {[%emt 0:30:03]} 42. Nxc7 {[%emt 0:00:10][%mdl 4096] Endgame. KRB-KRN} Rc8 {[%emt 0:00:25]} 43. Nd5 {[%emt 0:00:27]} Kg7 {[%emt 0:00:08]} (43... Ra8 $142 44. Kc2 (44. Nxf6+ Kg7 $18) 44... Kg7) 44. a5 {[%emt 0:01:16][%cal Ba4a5,Ba5a6,Ba6a7][%mdl 32]} Ra8 {[%emt 0:00:14]} 45. Ra4 {[%emt 0:01:44]} Kf7 {[%emt 0:00:27]} 46. a6 {[%emt 0:00:19] And now a7 would win.} Ra7 {[%emt 0:00:07]} 47. Kc2 {[%emt 0:00:00]} Bg7 {[%emt 0:00:00]} 48. Nb6 {[%emt 0:00:00]} Ke8 {[%emt 0:00:00]} 49. Nc8 {[%emt 0:00:00]} Ra8 {[%emt 0:00:00] [#]} 50. a7 $1 {[%emt 0:00:00] Weighted Error Value: White=0.13 (very precise) /Black=0.32.  Mistake:       	White=1     	Black=5      Inaccurate:     	---       	Black=5      OK:         	White=21    	Black=11     Best:        	White=2     	Black=4      Brilliant:      	White=1     	---} 1-0

[Event "Serbian League 2024"]
[Site "Bajina Basta"]
[Date "2024.09.28"]
[Round "1.15"]
[White "Szalai, Kornel"]
[Black "Nenezic, Marko"]
[Result "0-1"]
[ECO "B31"]
[WhiteElo "2388"]
[BlackElo "2492"]
[Annotator "TA"]
[PlyCount "116"]
[EventDate "2024.09.26"]
[EventType "team-tourn"]
[EventCountry "SRB"]
[SourceTitle "playchess.com"]
[Source "ChessBase"]
[SourceQuality "1"]
[TimeControl "40/5400+30:1800+30"]

{[%evp 9,116,16,22,12,16,0,18,5,15,0,0,-16,0,-29,-34,-51,-58,-47,-53,-62,-54,-56,-71,-80,-60,-69,-54,-56,-39,-60,-39,-49,-47,-56,-55,-59,-58,-62,-42,-38,-36,-153,-154,-160,-154,-146,-162,-210,-222,-217,-208,-195,0,-226,-230,-210,-205,-227,-194,-180,-178,-177,-182,-178,-178,-234,-179,-259,-224,-210,-175,-177,-202,-258,-258,-258,-258,-258,-258,-446,-439,-408,-388,-612,-413,-668,-522,-696,-646,-675,-679,-802,-767,-750,-471,-904,-926,-919,-895,-910,-920,-888,-760,-1024,-1023,-2249,-2200,-2689,-2350]} 1. e4 {[%emt 0:00:32]} c5 {[%emt 0:00:41]} 2. Nf3 {[%emt 0:00:36]} Nc6 {[%emt 0:02:07]} 3. Bb5 {[%emt 0:03:39]} g6 {[%emt 0:00:52]} 4. O-O {[%emt 0:00:43]} Bg7 {[%emt 0:00:08]} 5. Re1 {[%emt 0:00:55]} e5 {[%emt 0:00:52]} 6. a3 {[%emt 0:09:54][%cal Ob2b4]} Nge7 {[%emt 0:03:44]} 7. b4 {[%emt 0:04:02]} d6 {[%emt 0:03:40]} 8. bxc5 {[%emt 0:05:10] The position is equal.} dxc5 {[%emt 0:00:11]} 9. a4 {[%emt 0:00:21]} O-O {[%emt 0:02:47]} 10. Ba3 {[%emt 0:00:55]} b6 {[%emt 0:02:07]} 11. Nc3 {[%emt 0:15:27]} Na5 {[%emt 0:11:13]} 12. Bf1 {[%emt 0:12:41]} Be6 {[%emt 0:06:47]} 13. Ng5 {[%emt 0:09:02]} Bd7 {[%emt 0:01:20]} 14. Bb2 {[%emt 0:02:20]} Nec6 {[%emt 0:01:28]} 15. Nf3 {[%emt 0:00:14]} Be6 {[%emt 0:00:12]} 16. Nb5 {[%emt 0:13:53]} h6 {[%emt 0:04:51]} 17. Bc3 {[%emt 0:02:46]} Qd7 {[%emt 0:03:11]} 18. d3 {[%emt 0:03:45]} Rfd8 {[%emt 0:08:37]} 19. Nd2 {[%emt 0:01:56]} Qe7 {[%emt 0:08:45]} 20. Qb1 {[%emt 0:01:39]} Rab8 {[%emt 0:00:39]} 21. Na3 {[%emt 0:04:40]} h5 {[%emt 0:08:48]} 22. Nac4 {[%emt 0:01:28]} Nxc4 {[%emt 0:02:17]} 23. Nxc4 {[%emt 0:00:07]} Bxc4 {[%emt 0:00:34]} 24. dxc4 {[%emt 0:00:05]} Bh6 {[%emt 0:00:55]} 25. Qb5 {[%emt 0:01:12] [#]} ({White should play} 25. Rd1 $15) 25... Nb4 $1 $17 {[%emt 0:03:05]} 26. Bxb4 {[%emt 0:01:27]} cxb4 {[%emt 0:00:07]} 27. Red1 {[%emt 0:00:40]} Bd2 {[%emt 0:01:57]} 28. Rab1 {[%emt 0:01:49] [#]} (28. a5 $142) 28... Rbc8 $1 $19 {[%emt 0:06:33]} 29. Bd3 {[%emt 0:02:17] White is weak on the dark squares} Bc3 {[%emt 0:07:52]} 30. Be2 {[%emt 0:00:25]} Bd2 {[%emt 0:05:24] And now ...Rc5 would win.} 31. Bd3 $1 {[%emt 0:00:02]} Rc5 {[%emt 0:01:17]} 32. Rxd2 {[%emt 0:00:04]} Rxb5 {[%emt 0:00:03]} 33. axb5 {[%emt 0:00:29]} Rd4 {[%emt 0:00:59][%cal Of7f5]} 34. Re2 {[%emt 0:00:31]} h4 {[%emt 0:00:20][%cal Oh4h3]} 35. h3 {[%emt 0:01:01]} Qc5 {[%emt 0:00:18]} 36. Re3 {[%emt 0:00:28]} Kg7 {[%emt 0:00:18]} 37. Ra1 {[%emt 0:00:55]} (37. Kh1 {is a better defense.}) 37... Rd7 {[%emt 0:01:21]} 38. Kf1 {[%emt 0:00:15]} (38. Rb1 {keeps fighting.}) 38... Kf6 {[%emt 0:02:04]} 39. Rf3+ {[%emt 0:00:29]} Ke7 {[%emt 0:00:30]} 40. Rb1 {[%emt 0:00:12]} Rd4 {[%emt 0:00:23][%cal Of7f5]} 41. Kg1 {[%emt 0:10:10] [#]} f5 $1 {[%emt 0:05:12][%mdl 512]} 42. Re1 {[%emt 0:02:10]} f4 {[%emt 0:00:17]} 43. Ra1 {[%emt 0:02:03]} Rd7 {[%emt 0:00:17] Strongly threatening ...Qd4.} 44. Kf1 $2 {[%emt 0:00:30]} (44. Rb1) 44... Qd4 {[%emt 0:01:58]} 45. Rb1 {[%emt 0:00:31]} Qc3 {[%emt 0:00:18]} 46. Kg1 {[%emt 0:00:08]} (46. Rd1 $142) 46... g5 {[%emt 0:01:46]} 47. Kh2 {[%emt 0:01:44]} (47. Rd1 $142) 47... Qd2 {[%emt 0:00:22] Black is clearly winning.} 48. Kg1 {[%emt 0:00:14]} Rd4 {[%emt 0:00:54]} 49. Kh2 {[%emt 0:01:27]} Kd6 {[%emt 0:00:16]} 50. Kh1 {[%emt 0:02:03]} Kc5 {[%emt 0:00:34][%cal Od4d3]} 51. Kg1 {[%emt 0:01:21]} Qc3 {[%emt 0:04:38][%cal Od4d3] ...Rxd3! would now be deadly.} 52. Kh2 {[%emt 0:00:52] [#]} (52. Rd1 $142) 52... Rxd3 $1 {[%emt 0:00:36][%mdl 512]} 53. Rxd3 {[%emt 0:01:29]} Qxc2 {[%emt 0:00:10] KQ-KRR} 54. Rd5+ {[%emt 0:04:39]} Kxc4 {[%emt 0:00:09]} 55. Ra1 {[%emt 0:00:04]} Qxe4 {[%emt 0:01:22]} 56. Rd7 {[%emt 0:00:19]} Kxb5 {[%emt 0:00:29]} 57. Rdxa7 {[%emt 0:00:46]} b3 {[%emt 0:00:39] Threatens to win with ...b2.} 58. R7a3 {[%emt 0:01:55]} Qc2 {[%emt 0:00:15] Weighted Error Value: White=0.71/Black=0.27 (precise) .  Mistake:       	White=7     	---        Inaccurate:     	White=1     	Black=1      OK:         	White=11    	Black=17     Best:        	White=3     	Black=1      Strong:       	White=1     	Black=2} 0-1

[Event "Serbian League 2024"]
[Site "Bajina Basta"]
[Date "2024.09.28"]
[Round "1.22"]
[White "Tadic, Stefan"]
[Black "Bryakin, Mikhail"]
[Result "1/2-1/2"]
[ECO "C55"]
[WhiteElo "2440"]
[BlackElo "2438"]
[Annotator "TA"]
[PlyCount "105"]
[EventDate "2024.09.26"]
[EventType "team-tourn"]
[EventCountry "SRB"]
[SourceTitle "playchess.com"]
[Source "ChessBase"]
[SourceQuality "1"]
[TimeControl "40/5400+30:1800+30"]

{[%evp 11,105,16,7,9,14,8,29,34,36,36,28,31,45,50,46,38,50,48,51,51,51,44,49,41,55,39,62,45,74,67,71,69,82,88,83,86,81,111,85,75,91,73,79,82,73,73,145,132,146,135,125,126,124,127,151,67,138,131,86,80,98,135,159,106,248,246,222,0,0,0,206,161,170,29,16,0,133,120,135,131,108,0,0,0,0,0,0,0,0,0,0,0,0,0,0,0]} 1. e4 {[%emt 0:00:24]} e5 {[%emt 0:00:07]} 2. Nf3 {[%emt 0:00:19]} Nc6 {[%emt 0:00:08]} 3. Bc4 {[%emt 0:00:33]} Nf6 {[%emt 0:00:25]} 4. d3 {[%emt 0:00:36]} Be7 {[%emt 0:00:15]} 5. O-O {[%emt 0:00:36]} O-O {[%emt 0:00:32]} 6. Nc3 {[%emt 0:00:19]} d6 {[%emt 0:00:48]} 7. a4 {[%emt 0:01:15]} Be6 {[%emt 0:02:17]} 8. Nd5 {[%emt 0:00:23]} Nd4 {[%emt 0:03:13]} 9. Nxe7+ {[%emt 0:25:57] White has an edge.} Qxe7 {[%emt 0:00:11]} 10. Nxd4 {[%emt 0:00:08]} exd4 {[%emt 0:00:26]} 11. Re1 {[%emt 0:00:11]} Nd7 {[%emt 0:07:34][%cal Bf6d7,Bd7b8,Bb8c6][%mdl 32]} 12. b3 {[%emt 0:09:44]} c5 {[%emt 0:05:13]} 13. f4 {[%emt 0:14:33]} Nb8 {[%emt 0:04:49]} 14. Qf3 {[%emt 0:00:09]} Nc6 {[%emt 0:00:57]} 15. Bd2 {[%emt 0:00:04]} Bxc4 {[%emt 0:04:19]} 16. bxc4 {[%emt 0:04:44]} Qd7 {[%emt 0:01:23]} 17. a5 {[%emt 0:00:25]} Rab8 {[%emt 0:01:15]} 18. Rab1 {[%emt 0:10:39]} Rfe8 {[%emt 0:01:43]} 19. Qf2 {[%emt 0:04:10]} Re7 {[%emt 0:09:48]} 20. c3 {[%emt 0:00:19]} f5 {[%emt 0:04:22]} 21. cxd4 {[%emt 0:01:03] Black must now prevent d5.} Nxd4 {[%emt 0:05:32]} 22. Bc3 {[%emt 0:01:23]} Nc6 {[%emt 0:00:24]} 23. exf5 {[%emt 0:02:01]} Qxf5 {[%emt 0:03:31]} 24. Rxe7 {[%emt 0:00:21]} Nxe7 {[%emt 0:00:07]} 25. Qf3 {[%emt 0:00:02]} Qd7 {[%emt 0:00:49]} 26. Re1 {[%emt 0:02:43][%cal Bb1e1,Be1e5,Be5d5][%mdl 32]} Rf8 {[%emt 0:03:50]} 27. g4 {[%emt 0:08:33]} d5 {[%emt 0:04:20]} 28. f5 {[%emt 0:00:14]} Rf7 {[%emt 0:07:19]} ({Better is} 28... d4 29. Bd2 Nc6) 29. Re5 $1 $16 {[%emt 0:03:04][%cal Rc4d5] White is much more active.} h5 {[%emt 0:03:55]} 30. h3 {[%emt 0:05:43][%cal Rc4d5]} (30. gxh5 dxc4 31. dxc4 Rxf5 32. Rxe7 Rg5+ 33. Kh1 Qxe7 $11) (30. cxd5 $6 hxg4 31. Qxg4 Nxd5 $15) 30... hxg4 {[%emt 0:03:07]} 31. hxg4 {[%emt 0:00:05]} dxc4 {[%emt 0:01:28]} 32. dxc4 {[%emt 0:00:04]} b6 {[%emt 0:08:00]} 33. a6 {[%emt 0:01:05]} (33. Qe4 $16) 33... Nc6 {[%emt 0:06:49]} (33... Ng6 $14 34. Rd5 Qe7) 34. Rd5 {[%emt 0:00:56]} Qe7 {[%emt 0:00:51] Black is weak on the light squares} 35. Rd1 {[%emt 0:05:15]} Qg5 {[%emt 0:03:12][%cal Oc6d4]} 36. Re1 {[%emt 0:00:00]} (36. Qxc6 $2 Qxg4+ 37. Qg2 Qxd1+ $19) 36... Ne7 {[%emt 0:00:39][%cal Rf7f5]} 37. Qa8+ {[%emt 0:00:12]} (37. Kf2 $142) 37... Rf8 {[%emt 0:01:13]} (37... Kh7 $16) 38. Qg2 $18 {[%emt 0:00:02][%cal Of5f6] Hoping for f6!} (38. Qxa7 $2 {is the wrong capture.} Qxg4+ 39. Kh2 Qh4+ (39... Nxf5 $2 40. Qc7 $19) 40. Kg1 Qg3+ (40... Nxf5 $2 41. Qb7 $19) 41. Kh1 Nxf5 $19 (41... Qxc3 $2 42. Qxe7 Qh3+ 43. Kg1 $19)) 38... Rf7 {[%emt 0:02:50]} 39. Qa8+ {[%emt 0:00:04]} Rf8 {[%emt 0:00:02]} 40. Qg2 {[%emt 0:00:04][%cal Of5f6] And now f6! would win.} (40. Qxa7 $2 {loses.} Qxg4+ 41. Kh2 Qh4+ (41... Nxf5 $2 42. Qd7 $19) 42. Kg1 Qg3+ (42... Nxf5 $2 43. Qb7 $19) 43. Kh1 Nxf5 $19 (43... Qxc3 $2 44. Qxe7 Qh3+ 45. Kg1 $19)) 40... Rf7 {[%emt 0:01:37]} 41. Be5 {[%emt 0:13:08] Against Qf4} Kh7 {[%emt 0:04:59]} 42. Qh2+ {[%emt 0:09:59]} (42. Qg3 $18) 42... Kg8 $11 {[%emt 0:00:56]} 43. Qg2 {[%emt 0:00:13]} (43. Qg3 $11) 43... Kh7 $1 $16 {[%emt 0:00:49]} 44. Qh3+ $1 {[%emt 0:02:03]} Kg8 {[%emt 0:01:20][%cal Re7f5] [#]} 45. Bd6 $1 {[%emt 0:01:17]} g6 {[%emt 0:06:58] [#]} 46. Bxe7 {[%emt 0:07:45]} (46. fxg6 $1 $16 Nxg6 47. Qh5 Qxh5 48. Re8+ (48. gxh5 Rd7 $16) 48... Kg7 49. gxh5) 46... Rxe7 $11 {[%emt 0:00:23] The position is equal.} 47. Rxe7 {[%emt 0:00:29]} Qxe7 {[%emt 0:00:02]} 48. fxg6 $16 {[%emt 0:00:35][%cal Oh3h7] Intending Qh7+! and mate. KQ-KQ} Qe1+ {[%emt 0:00:32]} 49. Qf1 {[%emt 0:00:28]} Qg3+ {[%emt 0:00:23]} 50. Qg2 {[%emt 0:00:04]} Qe1+ {[%emt 0:00:38]} 51. Qf1 {[%emt 0:00:13]} Qg3+ {[%emt 0:00:20]} 52. Qg2 {[%emt 0:00:05]} Qe1+ {[%emt 0:00:10]} 53. Qf1 {[%emt 0:00:06] Weighted Error Value: White=0.20 (precise) /Black=0.13 (very precise) .  Mistake:       	White=5     	Black=3      Inaccurate:     	---       	Black=1      OK:         	White=20    	Black=17     Best:        	White=2     	Black=5      Strong:       	White=2     	Black=1} 1/2-1/2

[Event "Serbian League 2024"]
[Site "Bajina Basta"]
[Date "2024.09.28"]
[Round "1.23"]
[White "Radovanovic, Mihajlo"]
[Black "Ratkovic, Milovan"]
[Result "1-0"]
[ECO "D11"]
[WhiteElo "2426"]
[BlackElo "2429"]
[Annotator "TA"]
[PlyCount "45"]
[EventDate "2024.09.26"]
[EventType "team-tourn"]
[EventCountry "SRB"]
[SourceTitle "playchess.com"]
[Source "ChessBase"]
[SourceQuality "1"]
[TimeControl "40/5400+30:1800+30"]

{[%evp 9,45,27,72,-30,-8,-15,0,-28,-16,-55,144,121,134,0,0,0,15,21,46,68,62,79,138,123,245,202,200,169,327,307,389,387,381,384,748,744,809,821]} 1. d4 {[%emt 0:00:02]} d5 {[%emt 0:00:41]} 2. Nf3 {[%emt 0:00:06]} c6 {[%emt 0:01:10]} 3. c4 {[%emt 0:04:49]} dxc4 {[%emt 0:02:24]} 4. e4 {[%emt 0:04:41]} b5 {[%emt 0:01:14]} 5. b3 {[%emt 0:01:03]} cxb3 {[%emt 0:19:41]} 6. Qxb3 {[%emt 0:00:01] D11: Slavische Verdediging: 3 Pf3 Zijvarianten en 3...Pf6 4 e3 Lg4.} ({Speel niet} 6. axb3 Bg4 $11) (6. a4 $16) 6... e6 $11 {[%emt 0:01:38] OK} 7. Bd3 {[%emt 0:07:33]} Nf6 {[%emt 0:01:36]} 8. O-O {[%emt 0:03:40] Onnauwkeurig. De stelling is in evenwicht.} Nbd7 {[%emt 0:01:34] OK} 9. a4 $146 {[%emt 0:02:42][%cal Ra4b5] Onnauwkeurig} ({Predecessor:} 9. Bf4 Be7 10. Nc3 b4 11. Na4 Bb7 12. Rac1 O-O 13. Rfd1 Rc8 14. Nc5 Nxc5 15. dxc5 {1-0 Celan,M (2029)-Billio,M (2062) OP-2019-0-04719}) 9... Be7 $2 {[%emt 0:05:45] [#] houdt voordeel. Fout (2.0)} (9... b4 $1 $15) 10. axb5 $16 {[%emt 0:05:52] Beste (Gemakkelijk)} cxb5 {[%emt 0:03:30]} {Wit zou moeten proberen} 11. Nc3 {[%emt 0:04:56] Fout (1.3)} ({Maar niet} 11. Bxb5 $6 O-O $14) (11. Qxb5 $16 {Sterke dreiging met Bf4.} O-O 12. Bd2) 11... b4 $11 {[%emt 0:12:12] Beste (Gemakkelijk)} 12. Nb5 {[%emt 0:00:14][%cal Oc1f4] En nu zou Bf4! winnen. OK} Bb7 {[%emt 0:06:40]} 13. Bf4 $1 {[%emt 0:01:15] Sterk} O-O {[%emt 0:01:36][%cal Rf6e4] Beste (Gemakkelijk)} 14. Bc7 $36 {[%emt 0:01:35][%mdl 2048] Zwart staat onder druk. Beste (Gemakkelijk)} Qc8 {[%emt 0:07:17][%cal Rb7e4]} 15. Bd6 {[%emt 0:00:31] Wit heeft actievere stukken. Beste (Gemakkelijk)} {Beter is} Bxd6 {[%emt 0:13:12] Fout (0.6)} (15... Qd8) 16. Nxd6 $16 {[%emt 0:00:02]} Qc7 {[%emt 0:01:11] is een betere verdediging. Fout (1.2)} (16... Qb8 $16 17. Qxb4 Bc6 18. Qxb8 Nxb8) 17. Qxb4 $18 {[%emt 0:00:08][%cal Of1c1] Beste (Gemakkelijk)} Nb6 {[%emt 0:08:02]} 18. Ne5 {[%emt 0:05:52] Dreigt te winnen met Rfb1.} Qe7 $2 {[%emt 0:02:37] Blijkt vruchtbaarder te zijn. Fout (1.6)} (18... Rad8) 19. Rfb1 {[%emt 0:01:16] Zwart is zwak op de lichte velden. OK} Ne8 {[%emt 0:05:02]} 20. Nxb7 {[%emt 0:03:09] OK} Qxb7 {[%emt 0:00:02]} 21. Bb5 {[%emt 0:00:06][%cal Bd3b5,Bb5c6,Bc6a8][%mdl 32] [#] Bc6 zou dodelijk zijn. EV=26.06. Goes to a8 (dbg)). OK} Qxe4 {[%emt 0:00:23] Fout (3.6)} (21... f6) 22. Bc6 {[%emt 0:00:17] Beste (Gemakkelijk)} Nd5 {[%emt 0:02:43]} 23. Bxa8 {[%emt 0:00:14] Blunder waarde: Wit=0.23 (precies) /Zwart=0.72.  Fout:        	Wit=1      	Zwart=5      Onnauwkeurig:    	Wit=2      	---        OK:         	Wit=4      	Zwart=2      Beste:        	Wit=5      	Zwart=2      Sterk:        	Wit=1      	---} 1-0